[Event "Titled Tuesday Blitz November 07 Early 2023"]
[White "Kavyev, Ruslan"]
[Black "Silvestre, Christian"]
[WhiteFideId "34110981"]
[BlackFideId "30956269"]
[WhiteElo "2633"]
[BlackElo "2191"]
[Result "0-1"]
[Round "6"]
[TimeControl "180+1"]
[Date "2023.11.07"]
[WhiteClock "0:00:04"]
[BlackClock "0:00:16"]
[Board "97"]

1. e4 {[%clk 0:02:42]}  c5 {[%clk 0:02:57]} 2. Nf3 {[%clk 0:02:43]}  a6 {[%clk 0:02:57]} 3. Nc3 {[%clk 0:02:42]}  e6 {[%clk 0:02:55]} 4. d4 {[%clk 0:02:42]}  cxd4 {[%clk 0:02:55]} 5. Nxd4 {[%clk 0:02:43]}  Qc7 {[%clk 0:02:56]} 6. g3 {[%clk 0:02:43]}  Bb4 {[%clk 0:02:52]} 7. Ne2 {[%clk 0:02:02]}  Nf6 {[%clk 0:02:49]} 8. Bg2 {[%clk 0:02:03]}  O-O {[%clk 0:02:36]} 9. O-O {[%clk 0:02:02]}  d6 {[%clk 0:02:28]} 10. a3 {[%clk 0:02:01]}  Bc5 {[%clk 0:02:27]} 11. Bg5 {[%clk 0:02:01]}  Nbd7 {[%clk 0:02:26]} 12. Kh1 {[%clk 0:01:52]}  Rb8 {[%clk 0:02:24]} 13. Qd2 {[%clk 0:01:50]}  b5 {[%clk 0:02:23]} 14. Nd4 {[%clk 0:01:45]}  Bb7 {[%clk 0:02:20]} 15. Rae1 {[%clk 0:01:41]}  h6 {[%clk 0:02:08]} 16. Be3 {[%clk 0:01:33]}  Ne5 {[%clk 0:02:06]} 17. Qd1 {[%clk 0:01:25]}  Nc4 {[%clk 0:01:57]} 18. Bc1 {[%clk 0:01:23]}  Qb6 {[%clk 0:01:48]} 19. Nb3 {[%clk 0:00:50]}  Bxf2 {[%clk 0:01:45]} 20. Rxf2 {[%clk 0:00:46]}  Qxf2 {[%clk 0:01:43]} 21. Rf1 {[%clk 0:00:47]}  Qb6 {[%clk 0:01:33]} 22. Rxf6 {[%clk 0:00:47]}  gxf6 {[%clk 0:01:27]} 23. Bxh6 {[%clk 0:00:46]}  Ne5 {[%clk 0:01:16]} 24. Nd4 {[%clk 0:00:18]}  b4 {[%clk 0:01:07]} 25. Nf3 {[%clk 0:00:17]}  Ng6 {[%clk 0:00:56]} 26. axb4 {[%clk 0:00:13]}  Qxb4 {[%clk 0:00:56]} 27. Nh4 {[%clk 0:00:12]}  Qxb2 {[%clk 0:00:52]} 28. h3 {[%clk 0:00:05]}  Qxc3 {[%clk 0:00:49]} 29. Qg4 {[%clk 0:00:05]}  f5 {[%clk 0:00:33]} 30. Qh5 {[%clk 0:00:04]}  Bxe4 {[%clk 0:00:30]} 31. Nxg6 {[%clk 0:00:04]}  Bxg2+ {[%clk 0:00:26]} 32. Kh2 {[%clk 0:00:05]}  fxg6 {[%clk 0:00:21]} 33. Qxg6+ {[%clk 0:00:06]}  Kh8 {[%clk 0:00:21]} 34. Qh5 {[%clk 0:00:05]}  Bf3 {[%clk 0:00:20]} 35. Bg7+ {[%clk 0:00:05]}  Kxg7 {[%clk 0:00:16]} 36. Qg5+ {[%clk 0:00:04]}  Kf7 {[%clk 0:00:16]} 0-1


[Site "https://www.chess.com"]

[Event "Titled Tuesday Blitz November 07 Early 2023"]
[White "Liyanage, Ranindu Dilshan"]
[Black "gpsji27"]
[WhiteFideId "9915834"]
[WhiteElo "2768"]
[BlackElo "2355"]
[Result "1-0"]
[Round "6"]
[TimeControl "180+1"]
[Date "2023.11.07"]
[WhiteClock "0:00:11"]
[BlackClock "0:00:06"]
[Board "98"]

1. d4 {[%clk 0:02:55]}  d5 {[%clk 0:02:59]} 2. Bf4 {[%clk 0:02:54]}  c5 {[%clk 0:02:58]} 3. e3 {[%clk 0:02:54]}  Nc6 {[%clk 0:02:57]} 4. Nc3 {[%clk 0:02:52]}  a6 {[%clk 0:02:45]} 5. dxc5 {[%clk 0:02:44]}  e5 {[%clk 0:02:26]} 6. Bg3 {[%clk 0:02:43]}  d4 {[%clk 0:02:25]} 7. exd4 {[%clk 0:02:40]}  exd4 {[%clk 0:02:26]} 8. Ne4 {[%clk 0:02:40]}  Bxc5 {[%clk 0:02:14]} 9. Nxc5 {[%clk 0:02:40]}  Qa5+ {[%clk 0:02:11]} 10. c3 {[%clk 0:02:29]}  Qxc5 {[%clk 0:02:10]} 11. cxd4 {[%clk 0:02:29]}  Qxd4 {[%clk 0:02:04]} 12. Nf3 {[%clk 0:02:21]}  Qb4+ {[%clk 0:02:00]} 13. Qd2 {[%clk 0:02:21]}  Be6 {[%clk 0:01:54]} 14. Qxb4 {[%clk 0:02:02]}  Nxb4 {[%clk 0:01:55]} 15. Nd4 {[%clk 0:02:03]}  Rd8 {[%clk 0:01:44]} 16. Nxe6 {[%clk 0:02:03]}  fxe6 {[%clk 0:01:25]} 17. Rc1 {[%clk 0:01:50]}  Nf6 {[%clk 0:01:23]} 18. a3 {[%clk 0:01:46]}  Nbd5 {[%clk 0:01:19]} 19. Bd3 {[%clk 0:01:39]}  O-O {[%clk 0:01:17]} 20. O-O {[%clk 0:01:36]}  Rc8 {[%clk 0:01:15]} 21. Rfe1 {[%clk 0:01:31]}  Kf7 {[%clk 0:01:14]} 22. Be5 {[%clk 0:01:25]}  Nd7 {[%clk 0:01:01]} 23. Bd4 {[%clk 0:01:21]}  h6 {[%clk 0:00:15]} 24. g3 {[%clk 0:01:14]}  g5 {[%clk 0:00:13]} 25. h3 {[%clk 0:01:12]}  N7f6 {[%clk 0:00:13]} 26. Kg2 {[%clk 0:01:10]}  Rfe8 {[%clk 0:00:13]} 27. Bb1 {[%clk 0:01:04]}  Red8 {[%clk 0:00:13]} 28. Be5 {[%clk 0:01:01]}  Nd7 {[%clk 0:00:13]} 29. Bd4 {[%clk 0:01:00]}  N7f6 {[%clk 0:00:13]} 30. Rcd1 {[%clk 0:00:58]}  Rd7 {[%clk 0:00:12]} 31. Be5 {[%clk 0:00:46]}  Rcd8 {[%clk 0:00:11]} 32. Kg1 {[%clk 0:00:46]}  Ne8 {[%clk 0:00:10]} 33. Ba2 {[%clk 0:00:42]}  Nef6 {[%clk 0:00:10]} 34. Rc1 {[%clk 0:00:40]}  Re7 {[%clk 0:00:05]} 35. Rc2 {[%clk 0:00:35]}  Nd7 {[%clk 0:00:05]} 36. Bd6 {[%clk 0:00:36]}  Ree8 {[%clk 0:00:06]} 37. Rd1 {[%clk 0:00:26]}  N7f6 {[%clk 0:00:06]} 38. Be5 {[%clk 0:00:27]}  Rc8 {[%clk 0:00:06]} 39. Re2 {[%clk 0:00:21]}  Nd7 {[%clk 0:00:06]} 40. Bd4 {[%clk 0:00:20]}  N7f6 {[%clk 0:00:06]} 41. Kg2 {[%clk 0:00:20]}  Red8 {[%clk 0:00:06]} 42. Kg1 {[%clk 0:00:15]}  Re8 {[%clk 0:00:07]} 43. Rde1 {[%clk 0:00:14]}  Rcd8 {[%clk 0:00:07]} 44. Be5 {[%clk 0:00:14]}  Nd7 {[%clk 0:00:07]} 45. Bd4 {[%clk 0:00:11]}  N7f6 {[%clk 0:00:07]} 46. Bc5 {[%clk 0:00:11]}  Nd7 {[%clk 0:00:08]} 47. Bd6 {[%clk 0:00:07]}  N7f6 {[%clk 0:00:08]} 48. Bc5 {[%clk 0:00:07]}  Nd7 {[%clk 0:00:07]} 49. Be3 {[%clk 0:00:08]}  N7f6 {[%clk 0:00:06]} 50. Kg2 {[%clk 0:00:08]}  Nxe3+ {[%clk 0:00:06]} 51. Rxe3 {[%clk 0:00:08]}  Rd6 {[%clk 0:00:06]} 52. Rc1 {[%clk 0:00:09]}  Nd5 {[%clk 0:00:06]} 53. Re5 {[%clk 0:00:09]}  Red8 {[%clk 0:00:06]} 54. h4 {[%clk 0:00:07]}  Kf6 {[%clk 0:00:05]} 55. Re4 {[%clk 0:00:07]}  Kf5 {[%clk 0:00:04]} 56. Bb1 {[%clk 0:00:07]}  Kf6 {[%clk 0:00:04]} 57. hxg5+ {[%clk 0:00:07]}  hxg5 {[%clk 0:00:05]} 58. Rh1 {[%clk 0:00:07]}  Ne7 {[%clk 0:00:06]} 59. Rh6+ {[%clk 0:00:07]}  Kf7 {[%clk 0:00:07]} 60. Rh7+ {[%clk 0:00:06]}  Kf6 {[%clk 0:00:07]} 61. Re3 {[%clk 0:00:06]}  Nf5 {[%clk 0:00:07]} 62. Rf3 {[%clk 0:00:06]}  g4 {[%clk 0:00:07]} 63. Rf4 {[%clk 0:00:06]}  Rd4 {[%clk 0:00:07]} 64. Be4 {[%clk 0:00:06]}  Ke5 {[%clk 0:00:06]} 65. Bxf5 {[%clk 0:00:05]}  Rxf4 {[%clk 0:00:05]} 66. gxf4+ {[%clk 0:00:06]}  Kxf5 {[%clk 0:00:06]} 67. Rxb7 {[%clk 0:00:07]}  Kxf4 {[%clk 0:00:06]} 68. Rb6 {[%clk 0:00:07]}  e5 {[%clk 0:00:06]} 69. Rxa6 {[%clk 0:00:07]}  Rb8 {[%clk 0:00:07]} 70. Ra4+ {[%clk 0:00:07]}  e4 {[%clk 0:00:07]} 71. Rb4 {[%clk 0:00:08]}  Rc8 {[%clk 0:00:08]} 72. a4 {[%clk 0:00:08]}  Rc2 {[%clk 0:00:08]} 73. Kf1 {[%clk 0:00:08]}  Kf3 {[%clk 0:00:08]} 74. Rb3+ {[%clk 0:00:09]}  Kf4 {[%clk 0:00:06]} 75. a5 {[%clk 0:00:10]}  Rc1+ {[%clk 0:00:06]} 76. Ke2 {[%clk 0:00:09]}  Ra1 {[%clk 0:00:07]} 77. Ra3 {[%clk 0:00:09]}  Rb1 {[%clk 0:00:05]} 78. Ra2 {[%clk 0:00:09]}  g3 {[%clk 0:00:03]} 79. fxg3+ {[%clk 0:00:09]}  Kxg3 {[%clk 0:00:04]} 80. a6 {[%clk 0:00:10]}  Rc1 {[%clk 0:00:04]} 81. a7 {[%clk 0:00:10]}  Rc2+ {[%clk 0:00:05]} 82. Ke3 {[%clk 0:00:10]}  Rc8 {[%clk 0:00:06]} 83. a8=Q {[%clk 0:00:10]}  Rxa8 {[%clk 0:00:06]} 84. Rxa8 {[%clk 0:00:11]} 1-0


[Site "https://www.chess.com"]

[Event "Titled Tuesday Blitz November 07 Early 2023"]
[White "Kostiukov, Alexandr"]
[Black "Ozates, Tuna"]
[WhiteFideId "14108100"]
[BlackFideId "6354521"]
[WhiteElo "2448"]
[BlackElo "2607"]
[Result "1-0"]
[Round "6"]
[TimeControl "180+1"]
[Date "2023.11.07"]
[WhiteClock "0:00:41"]
[BlackClock "0:01:31"]
[Board "107"]

1. g3 {[%clk 0:02:54]}  c5 {[%clk 0:02:57]} 2. Bg2 {[%clk 0:02:51]}  Nc6 {[%clk 0:02:57]} 3. c4 {[%clk 0:02:52]}  g6 {[%clk 0:02:56]} 4. Nf3 {[%clk 0:02:52]}  Bg7 {[%clk 0:02:56]} 5. O-O {[%clk 0:02:52]}  d6 {[%clk 0:02:56]} 6. Nc3 {[%clk 0:02:51]}  e5 {[%clk 0:02:56]} 7. d3 {[%clk 0:02:50]}  Nge7 {[%clk 0:02:56]} 8. Bd2 {[%clk 0:02:45]}  O-O {[%clk 0:02:55]} 9. Ne1 {[%clk 0:02:46]}  Be6 {[%clk 0:02:55]} 10. Nc2 {[%clk 0:02:45]}  d5 {[%clk 0:02:54]} 11. cxd5 {[%clk 0:02:45]}  Nxd5 {[%clk 0:02:55]} 12. Ne3 {[%clk 0:02:38]}  Nde7 {[%clk 0:02:48]} 13. Qa4 {[%clk 0:02:29]}  Rb8 {[%clk 0:02:43]} 14. Qh4 {[%clk 0:02:27]}  Nd4 {[%clk 0:02:38]} 15. g4 {[%clk 0:02:11]}  f6 {[%clk 0:02:23]} 16. Rae1 {[%clk 0:02:04]}  b5 {[%clk 0:02:17]} 17. Ne4 {[%clk 0:01:58]}  Rc8 {[%clk 0:02:16]} 18. g5 {[%clk 0:01:53]}  f5 {[%clk 0:02:11]} 19. Nf6+ {[%clk 0:01:53]}  Bxf6 {[%clk 0:02:11]} 20. gxf6 {[%clk 0:01:54]}  Nec6 {[%clk 0:02:04]} 21. f4 {[%clk 0:01:38]}  exf4 {[%clk 0:02:01]} 22. Rxf4 {[%clk 0:01:29]}  Qxf6 {[%clk 0:02:01]} 23. Qxf6 {[%clk 0:01:23]}  Rxf6 {[%clk 0:02:01]} 24. Nd5 {[%clk 0:01:23]}  Rf7 {[%clk 0:01:59]} 25. e3 {[%clk 0:01:21]}  Nc2 {[%clk 0:01:57]} 26. Rc1 {[%clk 0:01:19]}  N2b4 {[%clk 0:01:56]} 27. Nxb4 {[%clk 0:01:16]}  Nxb4 {[%clk 0:01:53]} 28. Bxb4 {[%clk 0:01:15]}  cxb4 {[%clk 0:01:54]} 29. Rxc8+ {[%clk 0:01:15]}  Bxc8 {[%clk 0:01:54]} 30. Bd5 {[%clk 0:01:15]}  a5 {[%clk 0:01:54]} 31. Rd4 {[%clk 0:01:07]}  Kg7 {[%clk 0:01:41]} 32. Bxf7 {[%clk 0:01:07]}  Kxf7 {[%clk 0:01:41]} 33. Rd5 {[%clk 0:01:01]}  Be6 {[%clk 0:01:41]} 34. Rxb5 {[%clk 0:01:01]}  Bxa2 {[%clk 0:01:41]} 35. Rxa5 {[%clk 0:01:01]}  Bb1 {[%clk 0:01:38]} 36. Rb5 {[%clk 0:00:53]}  Bxd3 {[%clk 0:01:37]} 37. Rxb4 {[%clk 0:00:53]}  g5 {[%clk 0:01:37]} 38. Rd4 {[%clk 0:00:53]}  Be4 {[%clk 0:01:37]} 39. Rd7+ {[%clk 0:00:52]}  Ke6 {[%clk 0:01:35]} 40. Rxh7 {[%clk 0:00:49]}  Kd5 {[%clk 0:01:35]} 41. Kf2 {[%clk 0:00:45]}  Kc4 {[%clk 0:01:31]} 42. Rh6 {[%clk 0:00:41]} 1-0


[Site "https://www.chess.com"]

[Event "Titled Tuesday Blitz November 07 Early 2023"]
[White "pasteta13"]
[Black "Souleidis, Georgios"]
[BlackFideId "4206827"]
[WhiteElo "2448"]
[BlackElo "2605"]
[Result "0-1"]
[Round "6"]
[TimeControl "180+1"]
[Date "2023.11.07"]
[WhiteClock "0:00:00"]
[BlackClock "0:00:45"]
[Board "108"]

1. e4 {[%clk 0:03:00]}  c5 {[%clk 0:03:00]} 2. Ne2 {[%clk 0:03:01]}  e6 {[%clk 0:03:00]} 3. g3 {[%clk 0:03:01]}  a6 {[%clk 0:03:00]} 4. Bg2 {[%clk 0:03:02]}  b5 {[%clk 0:03:01]} 5. c3 {[%clk 0:03:01]}  Bb7 {[%clk 0:03:01]} 6. d4 {[%clk 0:03:01]}  d5 {[%clk 0:02:58]} 7. dxc5 {[%clk 0:02:53]}  Bxc5 {[%clk 0:02:58]} 8. exd5 {[%clk 0:02:50]}  Bxd5 {[%clk 0:02:57]} 9. Bxd5 {[%clk 0:02:45]}  exd5 {[%clk 0:02:57]} 10. b4 {[%clk 0:02:28]}  Bb6 {[%clk 0:02:54]} 11. a4 {[%clk 0:02:25]}  bxa4 {[%clk 0:02:00]} 12. Qxa4+ {[%clk 0:02:26]}  Qd7 {[%clk 0:01:56]} 13. O-O {[%clk 0:02:10]}  Nf6 {[%clk 0:01:52]} 14. Rd1 {[%clk 0:01:21]}  O-O {[%clk 0:01:47]} 15. Qxd7 {[%clk 0:01:21]}  Nbxd7 {[%clk 0:01:48]} 16. Nf4 {[%clk 0:01:16]}  Rfe8 {[%clk 0:01:39]} 17. Kg2 {[%clk 0:00:48]}  Nf8 {[%clk 0:01:12]} 18. Nxd5 {[%clk 0:00:40]}  Nxd5 {[%clk 0:01:12]} 19. Rxd5 {[%clk 0:00:40]}  Re2 {[%clk 0:01:02]} 20. Rd2 {[%clk 0:00:39]}  Re1 {[%clk 0:01:02]} 21. Na3 {[%clk 0:00:31]}  Ne6 {[%clk 0:00:54]} 22. Bb2 {[%clk 0:00:31]}  Rxa1 {[%clk 0:00:50]} 23. Bxa1 {[%clk 0:00:31]}  a5 {[%clk 0:00:48]} 24. Nc4 {[%clk 0:00:09]}  axb4 {[%clk 0:00:49]} 25. Nxb6 {[%clk 0:00:09]}  Rxa1 {[%clk 0:00:48]} 26. cxb4 {[%clk 0:00:09]}  Rb1 {[%clk 0:00:49]} 27. Nd5 {[%clk 0:00:07]}  g6 {[%clk 0:00:49]} 28. f4 {[%clk 0:00:06]}  h5 {[%clk 0:00:49]} 29. Kf3 {[%clk 0:00:07]}  Kg7 {[%clk 0:00:49]} 30. Ke4 {[%clk 0:00:07]}  f6 {[%clk 0:00:46]} 31. Kd3 {[%clk 0:00:06]}  Kf7 {[%clk 0:00:46]} 32. Kc4 {[%clk 0:00:06]}  g5 {[%clk 0:00:43]} 33. fxg5 {[%clk 0:00:05]}  fxg5 {[%clk 0:00:44]} 34. Rf2+ {[%clk 0:00:03]}  Ke8 {[%clk 0:00:44]} 35. Re2 {[%clk 0:00:03]}  Kd7 {[%clk 0:00:44]} 36. Nf6+ {[%clk 0:00:04]}  Kd6 {[%clk 0:00:45]} 37. Nxh5 {[%clk 0:00:04]}  Rc1+ {[%clk 0:00:44]} 38. Kb3 {[%clk 0:00:05]}  Nd4+ {[%clk 0:00:44]} 39. Kb2 {[%clk 0:00:00]}  Nxe2 {[%clk 0:00:45]} 0-1


[Site "https://www.chess.com"]

[Event "Titled Tuesday Blitz November 07 Early 2023"]
[White "Pesotskiy, Mikhail"]
[Black "LangesNasenhaar"]
[WhiteFideId "34164453"]
[WhiteElo "2604"]
[BlackElo "2431"]
[Result "1-0"]
[Round "6"]
[TimeControl "180+1"]
[Date "2023.11.07"]
[WhiteClock "0:00:11"]
[BlackClock "0:00:05"]
[Board "110"]

1. d4 {[%clk 0:03:00]}  d5 {[%clk 0:02:55]} 2. c4 {[%clk 0:02:59]}  e6 {[%clk 0:02:55]} 3. Nc3 {[%clk 0:03:00]}  c5 {[%clk 0:02:55]} 4. Nf3 {[%clk 0:03:00]}  Nf6 {[%clk 0:02:53]} 5. cxd5 {[%clk 0:02:59]}  exd5 {[%clk 0:02:52]} 6. Bg5 {[%clk 0:03:00]}  Be7 {[%clk 0:02:47]} 7. e3 {[%clk 0:03:00]}  Nc6 {[%clk 0:02:45]} 8. dxc5 {[%clk 0:03:00]}  Bxc5 {[%clk 0:02:45]} 9. Bxf6 {[%clk 0:02:42]}  Qxf6 {[%clk 0:02:45]} 10. Qxd5 {[%clk 0:02:43]}  Bb4 {[%clk 0:02:42]} 11. Rc1 {[%clk 0:02:36]}  O-O {[%clk 0:02:34]} 12. Be2 {[%clk 0:02:33]}  Be6 {[%clk 0:02:33]} 13. Qb5 {[%clk 0:02:29]}  Bxa2 {[%clk 0:02:09]} 14. Qxb7 {[%clk 0:02:25]}  Rab8 {[%clk 0:02:04]} 15. Qa6 {[%clk 0:02:17]}  Bb3 {[%clk 0:01:54]} 16. O-O {[%clk 0:02:14]}  Rb6 {[%clk 0:01:48]} 17. Qd3 {[%clk 0:01:52]}  Rd8 {[%clk 0:01:40]} 18. Qe4 {[%clk 0:01:28]}  Be6 {[%clk 0:01:39]} 19. h3 {[%clk 0:01:14]}  Bf8 {[%clk 0:01:20]} 20. Rfd1 {[%clk 0:01:07]}  Rdb8 {[%clk 0:01:19]} 21. Na4 {[%clk 0:01:03]}  Bf5 {[%clk 0:01:09]} 22. Qh4 {[%clk 0:00:27]}  Rb4 {[%clk 0:00:51]} 23. Qxf6 {[%clk 0:00:27]}  gxf6 {[%clk 0:00:52]} 24. Rxc6 {[%clk 0:00:26]}  Rxa4 {[%clk 0:00:52]} 25. Rxf6 {[%clk 0:00:27]}  Bg6 {[%clk 0:00:51]} 26. Ne5 {[%clk 0:00:19]}  Bg7 {[%clk 0:00:44]} 27. Nc6 {[%clk 0:00:18]}  Rxb2 {[%clk 0:00:40]} 28. Rd8+ {[%clk 0:00:16]}  Bf8 {[%clk 0:00:40]} 29. Ne7+ {[%clk 0:00:16]}  Kg7 {[%clk 0:00:40]} 30. Nxg6 {[%clk 0:00:17]}  hxg6 {[%clk 0:00:35]} 31. Bd1 {[%clk 0:00:17]}  Ra1 {[%clk 0:00:32]} 32. Rf4 {[%clk 0:00:16]}  Bc5 {[%clk 0:00:26]} 33. Kh2 {[%clk 0:00:13]}  Bb6 {[%clk 0:00:22]} 34. Rd7 {[%clk 0:00:13]}  Rbb1 {[%clk 0:00:19]} 35. Rfxf7+ {[%clk 0:00:11]}  Kg8 {[%clk 0:00:16]} 36. Bc2 {[%clk 0:00:11]}  Rc1 {[%clk 0:00:09]} 37. Bxg6 {[%clk 0:00:11]}  Rh1+ {[%clk 0:00:04]} 38. Kg3 {[%clk 0:00:11]}  Ra5 {[%clk 0:00:05]} 39. Rg7+ {[%clk 0:00:11]}  Kf8 {[%clk 0:00:04]} 40. Rdf7+ {[%clk 0:00:11]}  Ke8 {[%clk 0:00:05]} 41. Rg8# {[%clk 0:00:11]} 1-0


[Site "https://www.chess.com"]

[Event "Titled Tuesday Blitz November 07 Early 2023"]
[White "Streltsov, Alexey"]
[Black "marik_spb"]
[WhiteFideId "24104434"]
[WhiteElo "2592"]
[BlackElo "2406"]
[Result "1-0"]
[Round "6"]
[TimeControl "180+1"]
[Date "2023.11.07"]
[WhiteClock "0:00:14"]
[BlackClock "0:00:00"]
[Board "112"]

1. d4 {[%clk 0:02:55]}  Nf6 {[%clk 0:02:59]} 2. Nc3 {[%clk 0:02:49]}  d5 {[%clk 0:02:59]} 3. Bf4 {[%clk 0:02:50]}  c5 {[%clk 0:02:57]} 4. e3 {[%clk 0:02:50]}  e6 {[%clk 0:02:53]} 5. Nb5 {[%clk 0:02:48]}  Na6 {[%clk 0:02:53]} 6. c3 {[%clk 0:02:48]}  Be7 {[%clk 0:02:50]} 7. Nf3 {[%clk 0:02:47]}  O-O {[%clk 0:02:50]} 8. a4 {[%clk 0:02:48]}  Bd7 {[%clk 0:02:47]} 9. Be2 {[%clk 0:02:48]}  Qb6 {[%clk 0:02:42]} 10. Ne5 {[%clk 0:02:39]}  Be8 {[%clk 0:02:35]} 11. a5 {[%clk 0:02:17]}  Qd8 {[%clk 0:02:35]} 12. c4 {[%clk 0:02:18]}  Nb4 {[%clk 0:02:31]} 13. O-O {[%clk 0:02:06]}  dxc4 {[%clk 0:02:08]} 14. Bxc4 {[%clk 0:02:02]}  Nfd5 {[%clk 0:02:07]} 15. Bg3 {[%clk 0:01:59]}  cxd4 {[%clk 0:02:02]} 16. Nxd4 {[%clk 0:01:56]}  Rc8 {[%clk 0:02:00]} 17. b3 {[%clk 0:01:50]}  Bf6 {[%clk 0:01:51]} 18. Qh5 {[%clk 0:01:46]}  Nc6 {[%clk 0:01:08]} 19. a6 {[%clk 0:01:22]}  Nxe5 {[%clk 0:01:01]} 20. axb7 {[%clk 0:01:17]}  Rb8 {[%clk 0:00:31]} 21. Bxe5 {[%clk 0:00:55]}  Rxb7 {[%clk 0:00:30]} 22. Rfd1 {[%clk 0:00:42]}  Bxe5 {[%clk 0:00:26]} 23. Qxe5 {[%clk 0:00:43]}  Qf6 {[%clk 0:00:25]} 24. Qd6 {[%clk 0:00:34]}  Nc3 {[%clk 0:00:22]} 25. Rdc1 {[%clk 0:00:30]}  Qxf2+ {[%clk 0:00:20]} 26. Kxf2 {[%clk 0:00:25]}  Ne4+ {[%clk 0:00:21]} 27. Kf3 {[%clk 0:00:25]}  Nxd6 {[%clk 0:00:21]} 28. Ra6 {[%clk 0:00:22]}  Nb5 {[%clk 0:00:16]} 29. Rca1 {[%clk 0:00:16]}  Nxd4+ {[%clk 0:00:15]} 30. exd4 {[%clk 0:00:17]}  Bb5 {[%clk 0:00:13]} 31. Rxa7 {[%clk 0:00:17]}  Bc6+ {[%clk 0:00:10]} 32. Kf2 {[%clk 0:00:16]}  Rxa7 {[%clk 0:00:10]} 33. Rxa7 {[%clk 0:00:15]}  g5 {[%clk 0:00:05]} 34. g3 {[%clk 0:00:15]}  Ra8 {[%clk 0:00:04]} 35. Rc7 {[%clk 0:00:14]}  Be4 {[%clk 0:00:05]} 36. Ke3 {[%clk 0:00:14]}  Bh1 {[%clk 0:00:05]} 37. h4 {[%clk 0:00:14]}  h6 {[%clk 0:00:04]} 38. b4 {[%clk 0:00:14]}  Ra3+ {[%clk 0:00:00]} 39. Kf2 {[%clk 0:00:14]} 1-0


[Site "https://www.chess.com"]

[Event "Titled Tuesday Blitz November 07 Early 2023"]
[White "Dishman, Stephen"]
[Black "OPQRC"]
[WhiteFideId "403024"]
[WhiteElo "2369"]
[BlackElo "2553"]
[Result "0-1"]
[Round "6"]
[TimeControl "180+1"]
[Date "2023.11.07"]
[WhiteClock "0:00:05"]
[BlackClock "0:01:09"]
[Board "115"]

1. d4 {[%clk 0:03:00]}  Nf6 {[%clk 0:03:00]} 2. Bg5 {[%clk 0:03:00]}  c5 {[%clk 0:02:59]} 3. d5 {[%clk 0:02:59]}  d6 {[%clk 0:02:58]} 4. Nc3 {[%clk 0:02:58]}  g6 {[%clk 0:02:58]} 5. e4 {[%clk 0:02:58]}  Bg7 {[%clk 0:02:58]} 6. Nf3 {[%clk 0:02:57]}  O-O {[%clk 0:02:58]} 7. a4 {[%clk 0:02:55]}  h6 {[%clk 0:02:54]} 8. Bf4 {[%clk 0:02:54]}  Bg4 {[%clk 0:02:50]} 9. Be2 {[%clk 0:02:53]}  Nfd7 {[%clk 0:02:49]} 10. Nd2 {[%clk 0:02:48]}  Bxe2 {[%clk 0:02:48]} 11. Qxe2 {[%clk 0:02:49]}  Ne5 {[%clk 0:02:48]} 12. O-O {[%clk 0:02:49]}  Nbd7 {[%clk 0:02:47]} 13. Be3 {[%clk 0:02:46]}  f5 {[%clk 0:02:46]} 14. exf5 {[%clk 0:02:37]}  gxf5 {[%clk 0:02:45]} 15. Bf4 {[%clk 0:02:33]}  Ng6 {[%clk 0:02:41]} 16. Qf3 {[%clk 0:02:24]}  Nde5 {[%clk 0:02:37]} 17. Qg3 {[%clk 0:02:16]}  Nxf4 {[%clk 0:02:36]} 18. Qxf4 {[%clk 0:02:16]}  Qb6 {[%clk 0:02:28]} 19. Ra2 {[%clk 0:02:12]}  Qb4 {[%clk 0:02:23]} 20. Qxb4 {[%clk 0:02:02]}  cxb4 {[%clk 0:02:24]} 21. Nb5 {[%clk 0:02:02]}  a6 {[%clk 0:02:18]} 22. Nd4 {[%clk 0:01:57]}  Rfc8 {[%clk 0:02:17]} 23. c3 {[%clk 0:01:35]}  Nc4 {[%clk 0:01:49]} 24. Nxc4 {[%clk 0:01:33]}  Bxd4 {[%clk 0:01:48]} 25. Na5 {[%clk 0:01:08]}  bxc3 {[%clk 0:01:46]} 26. bxc3 {[%clk 0:01:08]}  Bxc3 {[%clk 0:01:46]} 27. Nb3 {[%clk 0:00:59]}  b5 {[%clk 0:01:42]} 28. axb5 {[%clk 0:00:55]}  axb5 {[%clk 0:01:43]} 29. Rxa8 {[%clk 0:00:54]}  Rxa8 {[%clk 0:01:44]} 30. Rc1 {[%clk 0:00:52]}  b4 {[%clk 0:01:44]} 31. g3 {[%clk 0:00:48]}  Kf7 {[%clk 0:01:35]} 32. Kg2 {[%clk 0:00:46]}  Kf6 {[%clk 0:01:35]} 33. Kf3 {[%clk 0:00:41]}  Ra3 {[%clk 0:01:34]} 34. Rb1 {[%clk 0:00:41]}  Ke5 {[%clk 0:01:34]} 35. Nc1 {[%clk 0:00:26]}  Kxd5 {[%clk 0:01:30]} 36. Kf4 {[%clk 0:00:25]}  Kc4 {[%clk 0:01:29]} 37. Kxf5 {[%clk 0:00:23]}  b3 {[%clk 0:01:21]} 38. Nxb3 {[%clk 0:00:23]}  Rxb3 {[%clk 0:01:22]} 39. Rd1 {[%clk 0:00:21]}  Rb2 {[%clk 0:01:19]} 40. h4 {[%clk 0:00:19]}  Rxf2+ {[%clk 0:01:18]} 41. Kg6 {[%clk 0:00:16]}  Rg2 {[%clk 0:01:18]} 42. Kxh6 {[%clk 0:00:16]}  Rxg3 {[%clk 0:01:18]} 43. h5 {[%clk 0:00:17]}  d5 {[%clk 0:01:15]} 44. Kh7 {[%clk 0:00:16]}  Rg7+ {[%clk 0:01:14]} 45. Kh6 {[%clk 0:00:15]}  Rg8 {[%clk 0:01:14]} 46. Rf1 {[%clk 0:00:15]}  e5 {[%clk 0:01:10]} 47. Kh7 {[%clk 0:00:15]}  Rd8 {[%clk 0:01:09]} 48. h6 {[%clk 0:00:16]}  e4 {[%clk 0:01:09]} 49. Kg6 {[%clk 0:00:14]}  e3 {[%clk 0:01:09]} 50. h7 {[%clk 0:00:05]}  e2 {[%clk 0:01:09]} 0-1


[Site "https://www.chess.com"]